bitfinex/quotes_SOLUSD_20260114
["timestamp","ask_amount","ask_price","bid_price","bid_amount"]
[1768412165501,12.46,146.16,146.04,0.71336363]
[1768412165502,5.34408856,146.13,146.04,0.71336363]
[1768412165673,12.48,146.12,146.04,0.71336363]
[1768412166176,12.48,146.12,146.03,15.19730753]
[1768412166376,5.34408856,146.13,146.03,15.91067116]
[1768412166611,6.40213385,146.1,146.04,0.71336363]
[1768412166896,23.95455478,146.11,146.05,0.71336363]
[1768412167090,18.88213385,146.1,146.05,0.71336363]
[1768412167288,12.48,146.1,146.05,0.71336363]
[1768412167687,6.40213385,146.07,146.03,15.19730753]
[1768412167874,18.88213385,146.07,146.03,15.19730753]
[1768412168074,12.48,146.07,146.03,15.19730753]
[1768412168274,6.40213385,146.06,146.03,15.19730753]
[1768412168487,12.48,146.07,146.03,15.19730753]
[1768412168683,12.48,146.07,146.04,0.71336363]
[1768412168883,51.33118882,146.11,146.03,15.91067116]
[1768412169102,6.40213385,146.09,146.04,0.71336363]
[1768412169406,17.11039627,146.11,146.05,0.71336363]
[1768412169694,6.40213385,146.1,146.05,0.71336363]
[1768412169896,6.40213385,146.09,146.05,0.71336363]
[1768412170099,6.40213385,146.09,146.03,15.19730753]
[1768412170300,36.4329154,146.12,146.03,15.91067116]
[1768412170683,6.84556407,146.08,146.03,15.91067116]
[1768412170883,25.69769793,146.08,146.03,15.91067116]
[1768412171200,19.29556408,146.08,146.03,15.91067116]
[1768412171498,25.69769793,146.08,146.03,15.91067116]
[1768412171704,19.29556408,146.08,146.03,15.91067116]
[1768412171881,6.40213385,146.07,146.03,15.91067116]
[1768412172397,36.40947426,146.08,146.01,0.71336363]
[1768412172597,6.40213385,146.06,146.01,0.71336363]
[1768412172803,13.24910406,146.05,146.01,0.71336363]
[1768412173004,12.48,146.04,145.98,0.71336363]
[1768412173512,6.40213385,146.03,145.98,0.71336363]
[1768412173676,6.40213385,145.99,145.94,7.56504326]
[1768412173882,12.48,145.98,145.95,0.71336363]
[1768412174190,12.48,145.99,145.95,0.71336363]
[1768412174787,12.48,145.99,145.97,0.71336363]
[1768412175296,18.88213385,146.01,145.96,0.71336363]
[1768412175697,12.48,146.01,145.96,0.71336363]
[1768412175898,6.40213385,145.98,145.94,0.71336363]
[1768412176206,6.40213385,145.95,145.88,15.53652839]
[1768412176423,6.40213385,145.9,145.88,15.53652839]
[1768412176578,25.42507854,145.95,145.86,0.4613367]
[1768412176787,23.98410196,145.93,145.86,0.4613367]
[1768412177078,6.40213385,145.87,145.81,0.71336363]
[1768412177314,23.98410196,145.93,145.81,6.85819031]
[1768412177479,6.40213385,145.85,145.81,0.71336363]
[1768412177684,12.48,145.86,145.82,0.71336363]
[1768412178283,12.48,145.86,145.81,7.57143264]
[1768412178477,12.48,145.86,145.82,0.71336363]
[1768412178912,6.85307017,145.92,145.83,0.71336363]
[1768412179207,19.33307017,145.92,145.86,0.71336363]
[1768412179504,19.33307017,145.92,145.84,0.71336363]
[1768412179704,6.40213385,145.91,145.84,0.71336363]
[1768412179897,6.40213385,145.9,145.84,0.71336363]
[1768412180096,12.48,145.92,145.85,0.71118988]
[1768412180286,23.97866005,145.97,145.86,0.71118988]
[1768412180493,6.40213385,145.94,145.89,0.6722556]
[1768412180692,12.5,145.96,145.89,0.6722556]
[1768412180894,12.5,145.96,145.9,0.6722556]
[1768412181295,12.5,145.96,145.91,0.6722556]
[1768412181503,17.12064473,146.03,145.95,0.6722556]
[1768412181709,17.12064473,146.03,145.96,0.6722556]
[1768412181710,12.5,146.02,145.96,0.6722556]
[1768412181893,36.46931926,146.02,145.96,0.6722556]
[1768412182095,36.46931926,146.02,145.94,0.6722556]
[1768412182292,12.5,146.02,145.96,0.6722556]
[1768412182493,12.5,146.02,145.98,0.6722556]
[1768412182682,12.5,146.04,145.95,0.6722556]
[1768412182885,29.61910444,146.04,145.96,0.6722556]
[1768412183190,6.84790796,146.03,145.94,0.6722556]
[1768412183490,6.40213385,146.0,145.96,0.6722556]
[1768412184093,6.84753906,146.04,145.97,0.6722556]
[1768412184312,12.5,146.04,145.98,0.6722556]
[1768412184519,18.90213385,146.04,145.98,0.6722556]
[1768412184886,12.5,146.04,145.99,0.6722556]
[1768412185295,18.90213385,146.04,145.99,0.6722556]
[1768412185514,6.40213385,146.02,145.95,0.6722556]
[1768412185821,6.40213385,146.02,145.94,17.13029402]
[1768412185822,6.40213385,146.03,145.97,0.6722556]
[1768412185993,19.3475071,146.04,145.97,0.6722556]
[1768412186501,19.3475071,146.04,145.98,0.6722556]
[1768412186696,25.74964095,146.04,145.99,0.6722556]
[1768412186896,12.5,146.04,146.0,0.6722556]
[1768412187496,12.5,146.04,145.94,0.6722556]
[1768412187497,19.3477613,146.04,145.94,0.6722556]
[1768412187794,19.3477613,146.04,145.95,7.52383002]
[1768412187795,36.46635894,146.04,145.95,7.52383002]
[1768412187995,36.46635894,146.04,145.97,0.6722556]
[1768412188209,19.3477613,146.04,145.99,0.6722556]
[1768412188910,13.25108949,146.01,145.96,0.6722556]
[1768412189207,29.61859764,146.04,145.96,0.6722556]
[1768412189208,19.34752297,146.04,145.98,0.6722556]
[1768412189409,6.84509548,146.09,146.0,0.6722556]
[1768412189711,6.84509548,146.09,146.02,0.6722556]
[1768412189712,12.5,146.08,146.02,0.6722556]
[1768412189913,6.40213385,146.06,146.02,0.6722556]
[1768412190109,12.5,146.08,146.02,0.6722556]
[1768412190290,6.40213385,146.05,145.98,6.40213385]
[1768412190492,12.5,146.04,145.96,13.2531987]
[1768412190811,6.40213385,146.03,145.97,6.40213385]
[1768412191015,6.9771054,146.03,145.93,6.85260056]
[1768412191194,6.40213385,145.99,145.93,6.85260056]
[1768412191388,6.40213385,145.99,145.87,12.5]
[1768412191389,6.40213385,145.97,145.89,6.85435598]
[1768412191592,6.40213385,145.97,145.9,6.40213385]
[1768412191798,6.40213385,145.97,145.91,6.40213385]
[1768412192000,6.40213385,145.96,145.9,6.85392139]
[1768412192415,6.40213385,145.97,145.91,0.6722556]
[1768412192712,6.40213385,145.97,145.92,0.6722556]
[1768412192912,6.40213385,145.96,145.92,0.6722556]
[1768412193111,13.25375633,145.96,145.92,0.6722556]
[1768412193611,6.40213385,145.95,145.92,0.6722556]
[1768412194011,25.75375633,145.96,145.92,0.6722556]
[1768412194217,12.5,145.96,145.92,0.6722556]
[1768412194418,25.75333666,145.96,145.92,0.6722556]
[1768412194619,19.35120281,145.96,145.92,0.6722556]
[1768412194914,6.40213385,145.95,145.92,0.6722556]
[1768412195098,19.35120371,145.96,145.92,0.6722556]
[1768412195099,12.5,145.96,145.92,0.6722556]
[1768412195306,6.85083657,145.97,145.92,0.6722556]
[1768412195501,19.35083657,145.97,145.92,0.6722556]
[1768412195702,12.5,145.97,145.92,7.5252184]
[1768412196006,12.5,145.99,145.94,0.6722556]
[1768412196197,12.5,145.99,145.95,0.6722556]
[1768412196395,12.5,145.99,145.95,7.07438945]
[1768412196595,12.5,145.99,145.96,0.6722556]
[1768412196998,6.40213385,146.03,145.98,0.6722556]
[1768412197198,18.90213385,146.03,145.98,0.6722556]
[1768412197428,6.40213385,146.02,145.98,0.6722556]
[1768412197592,12.5,146.03,145.98,0.6722556]
[1768412197798,12.5,146.06,146.01,0.6722556]
[1768412198096,18.90213385,146.06,146.01,0.6722556]
[1768412198300,12.5,146.06,146.01,0.6722556]
[1768412198710,18.90213385,146.06,146.01,0.6722556]
[1768412198915,12.5,146.06,146.01,0.6722556]
[1768412199120,19.34659698,146.06,146.01,0.6722556]
[1768412199320,25.74873083,146.06,146.01,0.6722556]
[1768412199520,19.34659698,146.06,146.01,0.6722556]
[1768412200205,6.40213385,146.05,146.0,6.84917439]
[1768412200418,6.40213385,146.05,146.0,7.52142999]
[1768412200617,6.40213385,146.05,146.01,0.6722556]
[1768412200932,12.5,146.06,146.02,0.6722556]
[1768412201132,19.34654766,146.06,146.0,7.52141731]
[1768412201324,6.40213385,146.05,146.0,7.52141731]
[1768412201528,12.5,146.06,146.02,0.6722556]
[1768412201698,18.90213385,146.06,146.02,0.6722556]
[1768412202026,25.74870614,146.06,146.02,0.6722556]
[1768412202227,6.40213385,146.05,146.0,7.52140737]
[1768412202409,6.40213385,146.05,146.0,0.6722556]
[1768412202731,6.40213385,146.03,146.0,0.6722556]
[1768412203024,19.46494443,146.06,146.0,0.6722556]
[1768412203025,36.58119802,146.06,146.0,0.6722556]
[1768412203226,6.40213385,146.03,146.0,0.6722556]
[1768412203427,0.64734462,146.01,145.95,7.52376792]
[1768412203630,0.64734462,146.01,145.96,0.6722556]
[1768412203631,6.40213385,146.0,145.96,0.6722556]
[1768412203833,12.5,146.01,145.96,0.6722556]
[1768412204134,12.5,146.04,145.97,0.6722556]
[1768412204308,18.90213385,146.04,145.98,0.6722556]
[1768412204500,6.40213385,146.03,145.98,0.6722556]
[1768412204905,12.5,146.04,145.98,0.6722556]
[1768412205119,13.25006021,146.03,145.98,0.6722556]
[1768412205522,12.5,146.04,145.99,0.6722556]
[1768412205704,6.84603272,146.07,145.99,0.6722556]
[1768412205904,18.90213385,146.06,146.0,0.6722556]
[1768412206324,6.40213385,146.05,146.02,0.6722556]
[1768412206523,12.47000001,146.06,146.02,0.6722556]
[1768412206524,18.87213386,146.06,146.02,0.6722556]
[1768412206808,6.40213385,146.06,146.02,0.6722556]
[1768412207017,6.40213385,146.06,146.03,0.6722556]
[1768412208137,6.40213385,146.05,146.03,0.6722556]
[1768412208325,6.84614924,146.07,146.03,0.6722556]
[1768412208532,6.40213385,146.05,146.03,0.6722556]
[1768412209032,6.40213385,146.06,146.03,0.6722556]
[1768412209332,10.44483324,146.05,146.03,0.6722556]
[1768412209636,6.84614924,146.07,146.03,0.6722556]
[1768412209831,19.34598955,146.08,146.04,0.6722556]
[1768412210035,19.34598955,146.08,145.99,17.12337063]
[1768412210036,10.44483324,146.07,146.02,0.6722556]
[1768412210414,10.44483324,146.07,146.03,7.53240426]
[1768412210615,22.94483324,146.08,146.04,0.68449965]
[1768412210815,12.5,146.08,146.04,0.68449965]
[1768412211136,22.94483324,146.08,146.04,0.68449965]
[1768412211343,12.5,146.08,146.05,0.68449965]
[1768412211652,22.94483324,146.08,146.05,0.68449965]
[1768412212421,22.94483324,146.08,146.02,0.68449965]
[1768412212422,19.34560652,146.08,146.02,0.68449965]
[1768412213135,19.34560652,146.08,146.02,6.84795955]
[1768412213136,0.66895273,146.07,146.02,6.84795955]
[1768412213439,10.44483324,146.03,145.99,0.68449965]
[1768412213634,13.14895273,146.03,145.97,7.53503881]
[1768412213834,10.44483324,146.02,145.98,7.53468641]
[1768412214036,13.14895273,146.03,145.98,7.53468641]
[1768412214231,22.92483324,146.03,145.99,7.53426469]
[1768412214748,0.66895273,146.05,146.0,0.68449965]
[1768412214749,22.92483324,146.05,146.0,0.68449965]
[1768412215117,10.44483324,146.05,146.01,7.53324868]
[1768412215320,12.48,146.06,146.01,7.53324868]
[1768412215522,10.44483324,146.05,146.02,0.68449965]
[1768412215724,12.48,146.06,146.02,0.68449965]
[1768412215929,10.44483324,146.05,146.02,0.68449965]
[1768412216130,0.66895273,146.05,145.98,0.68449965]
[1768412216345,10.44483324,146.02,145.98,0.68449965]
[1768412216743,10.44483324,146.02,145.99,7.53392479]
[1768412216930,10.44483324,146.02,145.99,0.68449965]
[1768412217138,10.44483324,146.02,145.99,7.53413963]
[1768412217447,10.44483324,146.03,145.99,7.53413963]
[1768412217824,7.51600935,146.05,145.99,7.53413963]
[1768412218053,10.44483324,146.03,145.99,7.53413963]
[1768412219043,10.44483324,146.03,145.99,0.68449965]
[1768412219643,10.44483324,146.03,145.99,7.53426506]
[1768412220238,10.44483324,146.01,145.98,6.85006514]
[1768412220549,0.66895273,146.04,145.98,6.85006514]
[1768412220746,0.66895273,146.04,145.99,6.84974028]
[1768412221051,10.44483324,146.03,146.0,7.53380542]
[1768412221246,10.44483324,146.02,146.0,7.53380542]
[1768412221453,6.84715577,146.05,146.0,7.53380542]
[1768412221750,7.5137657,146.1,146.01,0.68449965]
[1768412222048,10.44483324,146.06,146.01,0.68449965]
[1768412222351,10.44483324,146.06,146.0,6.84930577]
[1768412222352,13.14895273,146.06,146.0,6.84930577]
[1768412222649,10.44483324,146.03,146.0,7.53378253]
[1768412223150,10.44483324,146.03,146.0,0.68449965]
[1768412223540,10.44483324,146.03,146.0,7.533754]
[1768412223956,10.44483324,146.03,146.0,0.68449965]
[1768412224169,0.66895273,146.05,146.0,7.53366925]
[1768412224330,10.44483324,146.04,146.01,0.68449965]
[1768412224654,22.92483324,146.05,146.01,0.68449965]
[1768412224856,10.44483324,146.06,146.01,0.68449965]
[1768412225037,10.44483324,146.06,146.02,7.53287658]
[1768412225231,10.44483324,146.07,146.03,0.68449965]
[1768412225546,12.48,146.08,146.03,0.68449965]
[1768412225728,22.92483324,146.08,146.03,0.68449965]
[1768412226549,12.48,146.08,146.03,0.68449965]
[1768412226852,22.92483324,146.08,146.03,0.68449965]
[1768412227158,12.48,146.08,146.04,0.68449965]
[1768412227360,22.92483324,146.08,146.04,0.68449965]
[1768412228056,0.66895273,146.09,146.04,0.68449965]
[1768412228259,0.66895273,146.13,146.04,0.68449965]
[1768412228447,0.66895273,146.13,146.06,0.68449965]
[1768412228448,13.14895273,146.13,146.06,0.68449965]
[1768412228653,10.44483324,146.1,146.06,0.68449965]
[1768412228854,13.14895273,146.13,146.06,0.68449965]
[1768412229046,10.44483324,146.1,146.06,0.68449965]
[1768412229359,10.44483324,146.1,146.06,7.53076681]
[1768412230244,0.66384077,146.09,146.0,5.34408856]
[1768412230555,10.44483324,146.01,145.99,0.68449965]
[1768412230760,10.44483324,146.02,145.99,0.68449965]
[1768412231342,10.44483324,146.02,145.99,7.53420817]
[1768412231737,12.48,146.04,145.99,7.53420817]
[1768412232037,10.44483324,146.02,145.99,7.53420817]
[1768412232342,10.44483324,146.0,145.97,0.68449965]
[1768412232533,0.66895273,145.97,145.91,0.68449965]
[1768412232879,12.48,145.97,145.91,0.68449965]
[1768412233034,10.44483324,145.94,145.91,7.53800396]
[1768412233351,12.48,145.97,145.91,7.53800396]
[1768412233352,17.1206511,146.03,145.94,0.68449965]
[1768412233554,10.44483324,145.98,145.94,0.68449965]
[1768412233730,19.32837693,146.02,145.94,0.68449965]
[1768412233934,10.44483324,145.99,145.94,0.68449965]
[1768412234158,10.44483324,145.98,145.94,0.68449965]
[1768412234365,10.44483324,146.1,145.93,23.98410196]
[1768412234366,23.95455478,146.11,145.96,0.68449965]
[1768412234566,22.92483324,146.1,145.96,0.68449965]
[1768412234750,10.44483324,146.0,145.96,0.68449965]
[1768412234937,10.44483324,146.0,145.93,34.4289352]
[1768412234938,12.48,146.03,145.98,0.68449965]
[1768412235263,12.48,146.03,145.99,0.68449965]
[1768412235439,10.44483324,146.05,146.01,0.68449965]
[1768412235638,10.44483324,146.03,145.99,0.68449965]
[1768412236056,0.66895273,146.05,145.99,7.53425608]
[1768412236252,10.44483324,146.04,146.0,0.68449965]
[1768412236765,13.14895273,146.06,146.0,0.68449965]
[1768412236950,10.44483324,146.04,146.0,0.68449965]
[1768412237153,10.44483324,146.04,146.0,7.53375606]
[1768412237869,10.44483324,146.04,146.0,7.53380875]
[1768412238265,13.14895273,146.06,146.0,7.53380875]
[1768412238466,10.44483324,146.03,146.0,0.68449965]
[1768412238763,10.44483324,146.04,146.0,0.68449965]
[1768412238968,0.66895273,146.05,146.0,0.68449965]
[1768412239192,10.44483324,146.03,146.0,0.68449965]
[1768412239546,11.11378597,146.08,146.02,0.68449965]
[1768412240351,10.44483324,146.07,146.02,0.68449965]
[1768412240773,10.44483324,146.06,146.02,0.68449965]
[1768412241066,10.44483324,146.05,146.02,0.68449965]
[1768412241367,0.68027873,146.09,146.03,0.68885549]
[1768412241567,0.68027873,146.11,146.03,0.68885549]
[1768412241767,10.44483324,146.09,146.03,0.68885549]
[1768412242065,0.68027873,146.11,146.03,0.68885549]
[1768412242369,0.68027873,146.11,146.04,0.68885549]
[1768412242582,10.44483324,146.09,146.04,0.68885549]
[1768412242756,7.52447119,146.11,146.04,0.68885549]
[1768412242955,0.68027873,146.11,146.04,0.68885549]
[1768412243160,10.44483324,146.09,146.04,0.68885549]
[1768412243365,0.68027873,146.11,146.05,0.68885549]
[1768412243863,10.44483324,146.09,146.05,0.68885549]
[1768412244067,10.44483324,146.08,146.04,0.68885549]
[1768412244367,10.44483324,146.09,146.05,0.68885549]
[1768412244565,0.68027873,146.1,146.05,0.68885549]
[1768412244950,10.44483324,146.09,146.05,0.68885549]
[1768412245159,0.68027873,146.13,146.05,0.68885549]
[1768412245365,11.12511197,146.13,146.08,0.68885549]
[1768412245563,10.44483324,146.13,146.08,0.68885549]
[1768412245875,10.44483324,146.14,146.08,0.68885549]
[1768412246451,0.68027873,146.15,146.08,10.44483324]
[1768412246703,0.68027873,146.15,146.09,0.68885549]
[1768412246852,10.44483324,146.13,146.09,0.68885549]
[1768412247179,0.68027873,146.15,146.1,0.68885549]
[1768412247386,11.12511197,146.15,146.1,0.68885549]
[1768412247680,0.2,146.17,146.12,0.68885549]
[1768412248476,10.64483324,146.17,146.12,0.68885549]
[1768412248666,0.2,146.17,146.12,0.68885549]
[1768412249372,0.2,146.17,146.13,0.68885549]
[1768412249573,7.51988845,146.21,146.14,6.84275352]
[1768412249758,10.44483324,146.19,146.14,6.84275352]
[1768412249959,7.51988845,146.21,146.14,6.84275352]
[1768412250166,10.44483324,146.19,146.14,6.84275352]
[1768412250362,0.68027873,146.2,146.12,17.10845843]
[1768412250363,10.44483324,146.17,146.12,6.84351431]
[1768412250569,10.44483324,146.18,146.13,6.84310929]
[1768412250770,0.88027873,146.23,146.13,23.95116376]
[1768412250962,10.44483324,146.2,146.13,34.395997]
[1768412251158,10.44483324,146.19,146.13,34.395997]
[1768412251464,10.44483324,146.19,146.15,7.53114081]
[1768412251769,10.44483324,146.17,146.13,0.68885549]
[1768412252177,13.16027873,146.2,146.14,0.68885549]
[1768412252371,10.44483324,146.19,146.14,0.68885549]
[1768412252564,10.44483324,146.18,146.14,0.68885549]
[1768412252958,13.16027873,146.2,146.14,7.53132403]
[1768412253181,13.16027873,146.2,146.14,7.53156336]
[1768412253364,10.44483324,146.18,146.14,7.53156336]
[1768412254283,0.68027873,146.19,146.14,7.53156336]
[1768412254481,10.44483324,146.18,146.14,7.53156336]
[1768412254678,11.12511197,146.19,146.14,7.53156336]
[1768412254875,0.68027873,146.19,146.14,7.53156336]
[1768412255081,11.12511197,146.19,146.14,7.53156336]
[1768412255462,0.68027873,146.19,146.14,7.53156336]
[1768412255665,10.44483324,146.21,146.16,0.68885549]
[1768412255862,12.48,146.21,146.16,0.68885549]
[1768412256067,22.92483324,146.21,146.16,0.68885549]
[1768412256279,0.2,146.23,146.16,0.68885549]
[1768412256477,12.48,146.23,146.17,0.68885549]
[1768412256678,22.92483324,146.23,146.17,0.68885549]
[1768412256879,10.44483324,146.23,146.17,0.68885549]
[1768412257384,22.92483324,146.24,146.18,0.68885549]
[1768412257690,10.44483324,146.23,146.19,7.52926865]
[1768412257861,6.83721146,146.26,146.19,7.52926865]
[1768412258058,12.48,146.25,146.2,0.68885549]
[1768412258264,10.44483324,146.24,146.2,0.68885549]
[1768412258464,12.48,146.25,146.2,0.68885549]
[1768412258767,10.44483324,146.24,146.2,0.68885549]
[1768412259184,12.48,146.25,146.2,0.68885549]
[1768412259486,10.44483324,146.23,146.2,0.68885549]
[1768412259694,12.48,146.25,146.2,0.68885549]
[1768412259864,10.44483324,146.24,146.2,0.68885549]
[1768412260265,22.92483324,146.25,146.2,7.52858029]
[1768412260481,22.92483324,146.25,146.2,0.68885549]
[1768412261067,12.48,146.25,146.2,0.68885549]
[1768412261468,22.92483324,146.25,146.2,0.68885549]
[1768412261969,22.92483324,146.25,146.2,7.52879388]
[1768412262488,22.92483324,146.25,146.2,0.68885549]
[1768412262790,0.67795812,146.28,146.21,0.68885549]
[1768412263094,11.12279136,146.28,146.22,0.68885549]
[1768412263688,10.44483324,146.27,146.22,0.68885549]
[1768412263871,12.48,146.27,146.23,0.68885549]
[1768412264184,11.12279136,146.28,146.23,0.68885549]
[1768412264893,0.67795812,146.28,146.23,0.68885549]
[1768412265191,0.67795812,146.28,146.21,7.52809357]
[1768412265391,0.6756837,146.25,146.2,12.48]
[1768412265596,10.44483324,146.23,146.18,0.68885549]
[1768412265889,0.4549739,146.22,146.17,7.53002607]
[1768412266076,0.68027873,146.24,146.18,0.68885549]
[1768412266275,11.12511197,146.24,146.19,0.68885549]
[1768412266596,0.68027873,146.24,146.19,0.68885549]
[1768412267091,0.44821794,146.19,146.12,6.02845757]
[1768412267282,0.44821794,146.19,146.12,0.68885549]
[1768412267597,10.44483324,146.16,146.12,7.53253923]
[1768412267973,0.68027873,146.21,146.14,0.68885549]
[1768412268193,0.68027873,146.22,146.14,0.68885549]
[1768412268497,10.44483324,146.21,146.15,0.68885549]
[1768412268690,10.44483324,146.2,146.15,0.68885549]
[1768412269209,10.89305118,146.21,146.15,0.68885549]
[1768412269491,6.41422055,146.21,146.16,0.68885549]
[1768412269676,6.41422055,146.22,146.16,0.68885549]
[1768412269877,0.68027873,146.23,146.17,0.68885549]
[1768412270382,6.41422055,146.22,146.17,0.68885549]
[1768412270776,0.68027873,146.23,146.17,0.68885549]
[1768412270997,6.41422055,146.23,146.18,0.68966284]
[1768412271297,7.08487672,146.23,146.16,6.84152875]
[1768412271476,6.41422055,146.2,146.16,0.68966284]
[1768412271675,0.45774428,146.21,146.15,0.68966284]
[1768412271897,0.45774428,146.21,146.16,0.68966284]
[1768412272078,0.67065617,146.23,146.17,0.68966284]
[1768412272275,7.08487672,146.23,146.17,0.68966284]
[1768412272778,0.45774428,146.22,146.12,0.68966284]
[1768412272984,70.60407272,146.24,146.1,0.68966284]
[1768412272985,6.41422055,146.14,146.1,0.68966284]
[1768412273187,6.41422055,146.14,146.07,0.68966284]
[1768412273188,6.41422055,146.13,146.07,0.68966284]
[1768412273397,6.41422055,146.1,146.07,0.68966284]
[1768412273597,0.46191799,146.13,146.05,0.68966284]
[1768412273899,6.41422055,146.08,146.05,0.68966284]
[1768412274095,0.67065617,146.13,146.05,0.68966284]
[1768412274301,6.41422055,146.14,146.08,0.68966284]
[1768412274484,6.41422055,146.14,146.09,0.68966284]
[1768412274682,0.67065617,146.15,146.09,0.68966284]
[1768412274683,7.08487672,146.15,146.09,0.68966284]
[1768412274884,6.41422055,146.15,146.09,0.68966284]
[1768412275092,6.41422055,146.14,146.09,0.68966284]
[1768412275387,6.41422055,146.13,146.09,0.68966284]
[1768412275582,6.41422055,146.13,146.07,0.68966284]
[1768412275982,7.51096488,146.15,146.08,0.68966284]
[1768412276194,6.41422055,146.13,146.08,0.68966284]
[1768412277098,7.51096488,146.15,146.08,0.68966284]
[1768412277482,6.41422055,146.13,146.08,0.68966284]
[1768412279303,0.4598521,146.14,146.08,0.68966284]
[1768412279477,6.41422055,146.13,146.08,0.68966284]
[1768412279678,7.51254644,146.16,146.09,0.68966284]
[1768412279898,0.67065617,146.16,146.09,0.68966284]
[1768412280203,6.41422055,146.14,146.09,7.53467675]
[1768412281198,0.45774428,146.15,146.09,0.68966284]
[1768412281403,6.41422055,146.13,146.09,0.68966284]
[1768412281803,6.41422055,146.14,146.09,0.68966284]
[1768412282311,6.41422055,146.13,146.09,0.68966284]
[1768412283100,6.41422055,146.12,146.09,0.68966284]
[1768412283301,6.41422055,146.13,146.09,0.68966284]
[1768412283500,0.66852705,146.15,146.09,0.68966284]
[1768412283696,6.41422055,146.13,146.09,0.68966284]
[1768412284099,0.66852705,146.15,146.09,0.68966284]
[1768412284509,6.41422055,146.14,146.09,0.68966284]
[1768412285206,6.41422055,146.16,146.11,0.68966284]
[1768412285394,0.67065617,146.22,146.14,0.68966284]
[1768412285595,0.67065617,146.22,146.16,0.68966284]
[1768412285816,0.67065617,146.22,146.17,0.68966284]
[1768412286193,7.08487672,146.22,146.17,0.68966284]
[1768412286393,0.45774428,146.21,146.15,0.68966284]
[1768412286708,6.87196483,146.21,146.15,0.68966284]
[1768412286910,6.87196483,146.21,146.15,7.10388339]
[1768412287214,6.87196483,146.21,146.16,0.68966284]
[1768412287409,7.50937914,146.23,146.16,7.53139984]
[1768412287614,0.67065617,146.23,146.17,0.68966284]
[1768412287808,6.41422055,146.22,146.17,0.68966284]
[1768412288496,7.50931224,146.23,146.17,0.68966284]
[1768412288699,6.41422055,146.22,146.17,0.68966284]
[1768412289412,7.50931224,146.23,146.17,0.68966284]
[1768412289613,6.41422055,146.22,146.17,0.68966284]
[1768412289811,7.50931224,146.23,146.17,0.68966284]
[1768412290020,0.45774428,146.26,146.2,0.68966284]
[1768412290188,17.09173968,146.27,146.2,0.68966284]
[1768412290189,7.0827476,146.25,146.2,0.68966284]
[1768412290387,17.09173968,146.27,146.2,0.68966284]
[1768412290388,0.67065617,146.27,146.21,0.68966284]
[1768412290614,0.67065617,146.27,146.21,7.10388339]
[1768412290615,7.08487672,146.27,146.21,7.10388339]
[1768412290818,0.67065617,146.27,146.21,7.10388339]
[1768412291016,7.08487672,146.27,146.21,7.10388339]
[1768412291200,0.67065617,146.27,146.21,0.68966284]
[1768412291400,13.25137394,146.26,146.21,0.68966284]
[1768412291591,7.50749278,146.27,146.21,0.68966284]
[1768412291997,6.87407265,146.24,146.19,0.68966284]
[1768412292216,0.4598521,146.24,146.18,7.10388339]
[1768412292699,6.87407265,146.24,146.19,0.68966284]
[1768412293612,0.67065617,146.26,146.19,7.10388339]
[1768412293821,6.41422055,146.25,146.19,7.10388339]
[1768412294023,6.41422055,146.25,146.2,0.68966284]
[1768412294199,6.87196483,146.25,146.2,0.68966284]
[1768412294898,13.70978223,146.25,146.2,0.68966284]
[1768412295306,7.29556168,146.25,146.2,0.68966284]
[1768412295497,6.87196483,146.25,146.2,0.68966284]
[1768412295898,0.45774428,146.25,146.2,0.68966284]
[1768412296102,7.29535486,146.25,146.18,0.68966284]
[1768412296312,6.83725276,146.26,146.2,0.68966284]
[1768412296516,6.41422055,146.25,146.2,0.68966284]
[1768412296693,6.83725276,146.26,146.21,7.10388339]
[1768412296694,0.45774428,146.26,146.21,7.10388339]
[1768412296898,13.7091559,146.26,146.21,0.68966284]
[1768412297104,7.29493535,146.26,146.21,0.68966284]
[1768412297317,6.87196483,146.26,146.21,0.68966284]
[1768412297511,0.45774428,146.26,146.21,0.68966284]
[1768412297710,6.87196483,146.26,146.21,0.68966284]
[1768412297910,0.67065617,146.28,146.23,0.68966284]
[1768412298106,13.92110634,146.28,146.23,0.68966284]
[1768412298312,7.08487672,146.28,146.23,0.68966284]
[1768412298516,0.67065617,146.28,146.23,0.68966284]
[1768412298825,6.41422055,146.25,146.18,0.68966284]
[1768412299024,0.4598521,146.23,146.18,0.68966284]
[1768412299321,6.87407265,146.23,146.18,0.68966284]
[1768412299522,0.4598521,146.23,146.18,0.68966284]
[1768412299705,0.4598521,146.23,146.18,7.10388339]
[1768412300921,0.4598521,146.23,146.18,0.68966284]
[1768412301123,0.46191799,146.21,146.14,0.69186683]
[1768412301301,6.87613854,146.21,146.15,0.69186683]
[1768412301635,0.66439507,146.2,146.15,0.69186683]
[1768412301921,7.07861562,146.2,146.13,7.10608738]
[1768412302134,13.71871133,146.19,146.13,0.69186683]
[1768412302303,7.30449078,146.19,146.13,7.10608738]
[1768412302619,0.66239055,146.18,146.13,0.69186683]
[1768412303616,7.0766111,146.18,146.13,0.69186683]
[1768412303921,0.66239055,146.18,146.13,0.69186683]